Department,Entity,Date of Payment,Expense Type,Expense Area,Supplier,Transaction Number,Amount,Description,Supplier Postcode
"Department for Business, Innovation and Skills",UK Shared Business Services Ltd,01/04/2022,IT / Computing Support Services,UKRI Taleo,Oracle Corporation UK Ltd,99323675,"3,253.58",Technical Support (Professional Services) for Oracle Taleo System. This Professional Services is required to build a new Candidate Selection Workflow.,RG6 1RA
"Department for Business, Innovation and Skills",UK Shared Business Services Ltd,01/04/2022,IT / Computing Support Services,UKRI Taleo,Oracle Corporation UK Ltd,99325024,138.46,Technical Support (Professional Services) for Oracle Taleo System. This Professional Services is required to build a new Candidate Selection Workflow.,BH7 7DA
"Department for Business, Innovation and Skills",UK Shared Business Services Ltd,01/04/2022,IT / Computing Support Services,UKRI Taleo,Oracle Corporation UK Ltd,99349848,553.81,Technical Support (Professional Services) for Oracle Taleo System. This Professional Services is required to build a new Candidate Selection Workflow.,RG6 1RA
"Department for Business, Innovation and Skills",UK Shared Business Services Ltd,01/04/2022,IT / Computing Support Services,UKRI Taleo,Oracle Corporation UK Ltd,99358976,"1,799.88",Technical Support (Professional Services) for Oracle Taleo System. This Professional Services is required to build a new Candidate Selection Workflow.,BH7 7DA
"Department for Business, Innovation and Skills",UK Shared Business Services Ltd,01/04/2022,Computer Hardware,D&I Operations,Premier Farnell UK Ltd T/A Farnell Onecall,99372008,200.94,Audio Visuals,SWAREHOUSEONLY
"Department for Business, Innovation and Skills",UK Shared Business Services Ltd,01/04/2022,IT Cloud Services,Production Services,FlyForm Ltd,99382714,"4,999.20",Computing Software,CF10 3AG
"Department for Business, Innovation and Skills",UK Shared Business Services Ltd,01/04/2022,Computer Hardware,D&I Operations,Premier Farnell UK Ltd T/A Farnell Onecall,99382899,32.76,Audio Visuals,SWAREHOUSEONLY
"Department for Business, Innovation and Skills",UK Shared Business Services Ltd,01/04/2022,Computer Hardware,D&I Operations,Premier Farnell UK Ltd T/A Farnell Onecall,99382900,13.1,Audio Visuals,SWAREHOUSEONLY
"Department for Business, Innovation and Skills",UK Shared Business Services Ltd,01/04/2022,Printing & Stationery,Production Services,Konica Minolta Business Solutions (UK) Ltd,99382925,956.28,Computing Hardware,SS14 3AR
"Department for Business, Innovation and Skills",UK Shared Business Services Ltd,01/04/2022,Printing & Stationery,Production Services,Konica Minolta Business Solutions (UK) Ltd,99382925,"22,110.84",Audio Visuals,SS14 3AR
"Department for Business, Innovation and Skills",UK Shared Business Services Ltd,01/04/2022,Printing & Stationery,Production Services,Konica Minolta Business Solutions (UK) Ltd,99382925,"22,110.84",Audio Visuals,SS14 3AR
"Department for Business, Innovation and Skills",UK Shared Business Services Ltd,01/04/2022,Printing & Stationery,Production Services,Konica Minolta Business Solutions (UK) Ltd,99382925,"1,484.78",Computing Hardware,SS14 3AR
"Department for Business, Innovation and Skills",UK Shared Business Services Ltd,01/04/2022,Printing & Stationery,Production Services,Konica Minolta Business Solutions (UK) Ltd,99382925,638.42,Audio Visuals,SS14 3AR
"Department for Business, Innovation and Skills",UK Shared Business Services Ltd,01/04/2022,Printing & Stationery,Production Services,Konica Minolta Business Solutions (UK) Ltd,99382925,0.11,Audio Visuals,SS14 3AR
"Department for Business, Innovation and Skills",UK Shared Business Services Ltd,01/04/2022,Printing & Stationery,Production Services,Konica Minolta Business Solutions (UK) Ltd,99382925,763.16,Audio Visuals,SS14 3AR
"Department for Business, Innovation and Skills",UK Shared Business Services Ltd,01/04/2022,Printing & Stationery,Production Services,Konica Minolta Business Solutions (UK) Ltd,99382925,"9,008.03",Audio Visuals,SS14 3AR
"Department for Business, Innovation and Skills",UK Shared Business Services Ltd,01/04/2022,Printing & Stationery,Production Services,Konica Minolta Business Solutions (UK) Ltd,99382925,"22,110.85",Audio Visuals,SS14 3AR
"Department for Business, Innovation and Skills",UK Shared Business Services Ltd,01/04/2022,Printing & Stationery,Production Services,Konica Minolta Business Solutions (UK) Ltd,99382925,"18,267.97",Audio Visuals,SS14 3AR
"Department for Business, Innovation and Skills",UK Shared Business Services Ltd,01/04/2022,Printing & Stationery,Production Services,Konica Minolta Business Solutions (UK) Ltd,99383717,-763.16,Audio Visuals,SS14 3AR
"Department for Business, Innovation and Skills",UK Shared Business Services Ltd,01/04/2022,Printing & Stationery,Production Services,Konica Minolta Business Solutions (UK) Ltd,99383717,"-22,110.84",Audio Visuals,SS14 3AR
"Department for Business, Innovation and Skills",UK Shared Business Services Ltd,01/04/2022,Other Staff Benefits,Corporate HR,Amazon EU SARL,99386715,300,ZZ-Employee Benefits,EC2A 2FA
"Department for Business, Innovation and Skills",UK Shared Business Services Ltd,01/04/2022,Recruitment Costs,People,Michael Page International Recruitment Limited T/A Page Personnel,99386732,"3,420.00",Recruitment Services,SL1 1QP
"Department for Business, Innovation and Skills",UK Shared Business Services Ltd,01/04/2022,Recruitment Costs,People,Michael Page International Recruitment Limited T/A Page Personnel,99386734,"21,000.00",Recruitment Services,SL1 1QP
"Department for Business, Innovation and Skills",UK Shared Business Services Ltd,01/04/2022,Recruitment Costs,Corporate HR,Michael Page International Recruitment Limited T/A Page Personnel,99386735,"3,420.00",Recruitment Services,SL1 1QP
"Department for Business, Innovation and Skills",UK Shared Business Services Ltd,01/04/2022,Recruitment Costs,Corporate HR,Michael Page International Recruitment Limited T/A Page Personnel,99386737,"14,400.00",Recruitment Services,SL1 1QP
"Department for Business, Innovation and Skills",UK Shared Business Services Ltd,01/04/2022,Computer Hardware,Network Improvements,Dell Corporation Ltd,99386794,"3,870.00",Computer Consumables,SWAREHOUSEONLY
"Department for Business, Innovation and Skills",UK Shared Business Services Ltd,01/04/2022,Hardware/Software Maintenance,ISS Recoverable Charges � UKRI,Ogel IT Ltd,99386873,"8,896.02","Technical Assurance, Support & Escalation Service for Greenfield (UKRI) 01/04/21 - 31/03/21",SG1 2FS
"Department for Business, Innovation and Skills",UK Shared Business Services Ltd,01/04/2022,T&S - Vehicle Hire,D&I Operations,Unspecified,99390737,39.63,Vehicle Hire/Rental/Fuel (Actuals),HOME
"Department for Business, Innovation and Skills",UK Shared Business Services Ltd,01/04/2022,UK - Professional Memberships & Subscriptions,"Risk, Information & Security Compliance",Information Commissioner's Office,99394765,"2,895.00",February 2022 Direct Debit Data Protection,SK9 5AF
"Department for Business, Innovation and Skills",UK Shared Business Services Ltd,04/04/2022,Recruitment Costs,Corporate HR,Onefix Recruitment Ltd,99344628,360,Recruitment Services,PO3 5EJ
"Department for Business, Innovation and Skills",UK Shared Business Services Ltd,04/04/2022,Recruitment Costs,Corporate HR,Onefix Recruitment Ltd,99344629,360,Recruitment Services,PO3 5EJ
"Department for Business, Innovation and Skills",UK Shared Business Services Ltd,04/04/2022,Recruitment Costs,Corporate HR,Onefix Recruitment Ltd,99344631,360,Recruitment Services,PO3 5EJ
"Department for Business, Innovation and Skills",UK Shared Business Services Ltd,04/04/2022,Recruitment Costs,Corporate HR,Onefix Recruitment Ltd,99344632,360,Recruitment Services,PO3 5EJ
"Department for Business, Innovation and Skills",UK Shared Business Services Ltd,04/04/2022,Recruitment Costs,Corporate HR,Onefix Recruitment Ltd,99344634,360,Recruitment Services,PO3 5EJ
"Department for Business, Innovation and Skills",UK Shared Business Services Ltd,04/04/2022,Recruitment Costs,Corporate HR,Onefix Recruitment Ltd,99344636,360,Recruitment Services,PO3 5EJ
"Department for Business, Innovation and Skills",UK Shared Business Services Ltd,04/04/2022,Recruitment Costs,Corporate HR,Onefix Recruitment Ltd,99344637,360,Recruitment Services,PO3 5EJ
"Department for Business, Innovation and Skills",UK Shared Business Services Ltd,04/04/2022,Recruitment Costs,Corporate HR,Onefix Recruitment Ltd,99344639,360,Recruitment Services,PO3 5EJ
"Department for Business, Innovation and Skills",UK Shared Business Services Ltd,04/04/2022,Recruitment Costs,Corporate HR,Onefix Recruitment Ltd,99344640,360,Recruitment Services,PO3 5EJ
"Department for Business, Innovation and Skills",UK Shared Business Services Ltd,04/04/2022,GPC Clearing - SSC,Balance Sheet,Unspecified,99371764,-398,Unspecified,HOME
"Department for Business, Innovation and Skills",UK Shared Business Services Ltd,04/04/2022,GPC Sundry Expenditure,HRSD Recoverables,Unspecified,99371764,398,GPC_Miscellaneous GPC Expenditure,HOME
"Department for Business, Innovation and Skills",UK Shared Business Services Ltd,04/04/2022,Other Staff Benefits,Corporate HR,BMI Healthcare Limited,99374729,333,ZZ-Employee Benefits,SK3 0XN
"Department for Business, Innovation and Skills",UK Shared Business Services Ltd,04/04/2022,Legal & Professional Services,Corporate HR,AM Health & Safety Ltd,99391712,150,Professional Services,SN5 6BD
"Department for Business, Innovation and Skills",UK Shared Business Services Ltd,04/04/2022,Contract Staff,Corporate HR,Alexander Mann Solutions Ltd,99393836,"2,653.92",Recruitment Services,EC2N 3AQ
"Department for Business, Innovation and Skills",UK Shared Business Services Ltd,04/04/2022,Contract Staff,Corporate HR,Alexander Mann Solutions Ltd,99393837,"3,848.22",Recruitment Services,EC2N 3AQ
"Department for Business, Innovation and Skills",UK Shared Business Services Ltd,04/04/2022,Contract Staff,Project Office,Alexander Mann Solutions Ltd,99393839,"3,649.14",Recruitment Services,EC2N 3AQ
"Department for Business, Innovation and Skills",UK Shared Business Services Ltd,04/04/2022,Contract Staff,Production Services,Alexander Mann Solutions Ltd,99393840,"3,018.06",Recruitment Services,EC2N 3AQ
"Department for Business, Innovation and Skills",UK Shared Business Services Ltd,04/04/2022,Legal & Professional Services,Executive Function,3Adapt Ltd,99394760,"19,200.00",Professional Services,BA1 2NT
"Department for Business, Innovation and Skills",UK Shared Business Services Ltd,04/04/2022,T&S - Other Charges,Tier 1 ROE Transactions,Unspecified,99394837,115.21,Home-working Equipment,HOME
"Department for Business, Innovation and Skills",UK Shared Business Services Ltd,04/04/2022,GPC Clearing - SSC,Balance Sheet,Unspecified,99394838,-97.48,Unspecified,HOME
"Department for Business, Innovation and Skills",UK Shared Business Services Ltd,04/04/2022,GPC Sundry Expenditure,Contact Centres,Unspecified,99394838,97.48,GPC_Miscellaneous GPC Expenditure,HOME
"Department for Business, Innovation and Skills",UK Shared Business Services Ltd,05/04/2022,Computing Consumables,General Capital,Probrand Ltd,99325050,"4,331.00",Computer Consumables,SMARTFORM
"Department for Business, Innovation and Skills",UK Shared Business Services Ltd,05/04/2022,Computing Consumables,General Capital,Teqex Ltd,99332064,60.82,Computer Consumables,OL10 1ND
"Department for Business, Innovation and Skills",UK Shared Business Services Ltd,05/04/2022,Computing Consumables,General Capital,Probrand Ltd,99375724,"3,890.88",Computer Consumables,SMARTFORM
"Department for Business, Innovation and Skills",UK Shared Business Services Ltd,05/04/2022,Staff Training,HRSD Recoverables,Provek Ltd,99394287,"1,620.00",Training,RG19 4LW
"Department for Business, Innovation and Skills",UK Shared Business Services Ltd,05/04/2022,Staff Training,HRSD Recoverables,Provek Ltd,99394298,"1,620.00",Training,RG19 4LW
"Department for Business, Innovation and Skills",UK Shared Business Services Ltd,05/04/2022,Advertising & Promotion,Communications,Alive with Ideas Ltd T/A Alive,99395038,"2,070.00",Marketing & Design,RG21 7PU
"Department for Business, Innovation and Skills",UK Shared Business Services Ltd,05/04/2022,IT Cloud Services,Production Services,Jisc Services Ltd,99395723,419.36,Enhanced Anti-Malware,OX11 0SG
"Department for Business, Innovation and Skills",UK Shared Business Services Ltd,05/04/2022,IT Cloud Services,Production Services,Jisc Services Ltd,99395723,204,Enhanced Back-Up,OX11 0SG
"Department for Business, Innovation and Skills",UK Shared Business Services Ltd,05/04/2022,IT Cloud Services,Production Services,Jisc Services Ltd,99395723,"14,912.27",Managed AWS Consumption,OX11 0SG
"Department for Business, Innovation and Skills",UK Shared Business Services Ltd,05/04/2022,IT Cloud Services,Production Services,Jisc Services Ltd,99395723,"3,186.00",Managed Database Core,OX11 0SG
"Department for Business, Innovation and Skills",UK Shared Business Services Ltd,05/04/2022,Computer Software,SIAM,Oracle Corporation UK Ltd,99396715,"2,676.56",Computing Software,BH7 7DA
"Department for Business, Innovation and Skills",UK Shared Business Services Ltd,05/04/2022,T&S - Parking Tolls Congestion Charges,Operational Excellence,Unspecified,99396755,10,"Parking, Tolls, Congestion Charge",HOME
"Department for Business, Innovation and Skills",UK Shared Business Services Ltd,05/04/2022,Other Staff Benefits,Corporate HR,BMI Healthcare Limited,99398807,-116.5,Refund rec'd 24/08/20 re Inv CONS-0817 & CONS-0974 & Credit CONS-0817A,SK3 0XN
"Department for Business, Innovation and Skills",UK Shared Business Services Ltd,06/04/2022,Contract Staff,Corporate Commercial,Alexander Mann Solutions Ltd,99345241,"6,303.12",Recruitment Services,EC2N 3AQ
"Department for Business, Innovation and Skills",UK Shared Business Services Ltd,06/04/2022,Recruitment Costs,Corporate HR,Agenda Resource Management Ltd,99393900,153.91,Professional Services,HU12 8YJ
"Department for Business, Innovation and Skills",UK Shared Business Services Ltd,06/04/2022,Hardware/Software Maintenance,SIAM,Bluefort Security Ltd,99394329,"26,426.40",Computer Consumables,GU14 0LX
"Department for Business, Innovation and Skills",UK Shared Business Services Ltd,06/04/2022,Legal & Professional Services,SHARP,DAC Beachcroft LLP,99396765,"3,570.24",Professional Services,BS1 9HS
"Department for Business, Innovation and Skills",UK Shared Business Services Ltd,06/04/2022,Marketing & PR,Communications,Nicola Callis T/A Round House Graphics,99398770,"3,420.00",Marketing & Design,NN2 8SW
"Department for Business, Innovation and Skills",UK Shared Business Services Ltd,06/04/2022,Other Staff Benefits,Corporate HR,BMI Healthcare Limited,99398813,116.5,Repayment of refund rec'd 24/08/20 re Inv CONS-0817 & CONS-0974 & Credit CONS-0817A,SK3 0XN
"Department for Business, Innovation and Skills",UK Shared Business Services Ltd,06/04/2022,Financial Services,Finance Services,Allied Publicity Services (Manchester) Ltd t/a APS Group,99398995,131.77,Financial Services,SK3 OZP
"Department for Business, Innovation and Skills",UK Shared Business Services Ltd,06/04/2022,Health & Safety (inc. Medicals & Opticians),Finance Operations 1,Unspecified,99400776,80,Medical Fees & Vaccinations (Actuals),HOME
"Department for Business, Innovation and Skills",UK Shared Business Services Ltd,06/04/2022,T&S - Subsistence,D&I Operations,Unspecified,99400777,4.48,Breakfast (Actuals),HOME
"Department for Business, Innovation and Skills",UK Shared Business Services Ltd,06/04/2022,T&S - Subsistence,D&I Operations,Unspecified,99400777,5.25,Lunch (Actuals),HOME
"Department for Business, Innovation and Skills",UK Shared Business Services Ltd,07/04/2022,Contract Staff,Production Services,Alexander Mann Solutions Ltd,99358980,"1,231.85",Recruitment Services,EC2N 3AQ
"Department for Business, Innovation and Skills",UK Shared Business Services Ltd,07/04/2022,Contract Staff,Production Services,Alexander Mann Solutions Ltd,99359010,"9,238.86",Recruitment Services,EC2N 3AQ
"Department for Business, Innovation and Skills",UK Shared Business Services Ltd,07/04/2022,Staff Training,Contact Centres,Avado Learning Ltd,99400933,"1,660.01",Training,W12 7RZ
"Department for Business, Innovation and Skills",UK Shared Business Services Ltd,07/04/2022,T&S - Other Charges,Performance Analysis,Unspecified,99404740,55,Miscellaneous (Actuals),HOME
"Department for Business, Innovation and Skills",UK Shared Business Services Ltd,08/04/2022,Recruitment Costs,Corporate HR,Onefix Recruitment Ltd,99373763,360,Recruitment Services,PO3 5EJ
"Department for Business, Innovation and Skills",UK Shared Business Services Ltd,08/04/2022,T&S - Subsistence,D&I Infrastructure & Network Services,Unspecified,99379719,71.15,Evening Meal (Actuals),HOME
"Department for Business, Innovation and Skills",UK Shared Business Services Ltd,08/04/2022,T&S - Parking Tolls Congestion Charges,Corporate Finance,Unspecified,99411767,10,"Parking, Tolls, Congestion Charge",HOME
"Department for Business, Innovation and Skills",UK Shared Business Services Ltd,11/04/2022,Photocopy Costs,Facilities,Canon (UK) Ltd,99109643,29.28,FULL CREDIT 380110024 RE INVOICE,UB11 1ET
"Department for Business, Innovation and Skills",UK Shared Business Services Ltd,11/04/2022,Photocopy Costs,Facilities,Canon (UK) Ltd,99109643,5.86,SR10881340 RENT 1/2/22-30/4/22,UB11 1ET
"Department for Business, Innovation and Skills",UK Shared Business Services Ltd,11/04/2022,Recruitment Costs,Corporate HR,Everwell Occupational Health Ltd,99382918,168,Professional Services,CW11 3AE
"Department for Business, Innovation and Skills",UK Shared Business Services Ltd,11/04/2022,Photocopy Costs,Facilities,Canon (UK) Ltd,99395037,-35.14,SR 11041282 FULL CREDIT NOTE RE INVOICE 770880027,UB11 1ET
"Department for Business, Innovation and Skills",UK Shared Business Services Ltd,11/04/2022,GPC Clearing - SSC,Balance Sheet,Unspecified,99400773,-40.32,Unspecified,HOME
"Department for Business, Innovation and Skills",UK Shared Business Services Ltd,11/04/2022,GPC Sundry Expenditure,Production Services,Unspecified,99400773,40.32,GPC_Miscellaneous GPC Expenditure,HOME
"Department for Business, Innovation and Skills",UK Shared Business Services Ltd,11/04/2022,GPC Clearing - SSC,Balance Sheet,Unspecified,99400774,-423.82,Unspecified,HOME
"Department for Business, Innovation and Skills",UK Shared Business Services Ltd,11/04/2022,GPC Sundry Expenditure,D&I Management,Unspecified,99400774,423.82,GPC_Miscellaneous GPC Expenditure,HOME
"Department for Business, Innovation and Skills",UK Shared Business Services Ltd,11/04/2022,GPC Clearing - SSC,Balance Sheet,Unspecified,99400775,-6.75,Unspecified,HOME
"Department for Business, Innovation and Skills",UK Shared Business Services Ltd,11/04/2022,GPC Sundry Expenditure,Production Services,Unspecified,99400775,6.75,GPC_Miscellaneous GPC Expenditure,HOME
"Department for Business, Innovation and Skills",UK Shared Business Services Ltd,11/04/2022,Consultancy Services,Production Services,Premiertec Consulting Ltd t/a Claremont,99403005,"28,393.14","Consultancy and Professional Services to develop two key work areas around API re-development and re-use, and automation of features connected to the primary and sub-processes associated with the SML process. Also included: BAU, CIs and CRs",NE1 3DY
"Department for Business, Innovation and Skills",UK Shared Business Services Ltd,11/04/2022,GPC Clearing - SSC,Balance Sheet,Unspecified,99404738,-12.98,Unspecified,HOME
"Department for Business, Innovation and Skills",UK Shared Business Services Ltd,11/04/2022,GPC Sundry Expenditure,Production Services,Unspecified,99404738,12.98,GPC_Miscellaneous GPC Expenditure,HOME
"Department for Business, Innovation and Skills",UK Shared Business Services Ltd,11/04/2022,GPC Clearing - SSC,Balance Sheet,Unspecified,99404739,-19.35,Unspecified,HOME
"Department for Business, Innovation and Skills",UK Shared Business Services Ltd,11/04/2022,GPC Sundry Expenditure,Production Services,Unspecified,99404739,19.35,GPC_Miscellaneous GPC Expenditure,HOME
"Department for Business, Innovation and Skills",UK Shared Business Services Ltd,11/04/2022,GPC Clearing - SSC,Balance Sheet,Unspecified,99411768,-21,Unspecified,HOME
"Department for Business, Innovation and Skills",UK Shared Business Services Ltd,11/04/2022,GPC Sundry Expenditure,HRSD Recoverables,Unspecified,99411768,21,GPC_Miscellaneous GPC Expenditure,HOME
"Department for Business, Innovation and Skills",UK Shared Business Services Ltd,11/04/2022,Financial Services,Finance Services,Bacs Payment Schemes Limited,99416116,"2,340.00",Financial Services,E1W 1YN
"Department for Business, Innovation and Skills",UK Shared Business Services Ltd,11/04/2022,Contract Staff,Production Services,Proventeq Limited,99416132,"78,411.75",Recruitment Services,RG6 6BU
"Department for Business, Innovation and Skills",UK Shared Business Services Ltd,11/04/2022,Contract Staff,Production Services,Alexander Mann Solutions Ltd,99416740,"4,311.47",Recruitment Services,EC2N 3AQ
"Department for Business, Innovation and Skills",UK Shared Business Services Ltd,11/04/2022,Contract Staff,Production Services,Alexander Mann Solutions Ltd,99418796,"3,695.54",Recruitment Services,EC2N 3AQ
"Department for Business, Innovation and Skills",UK Shared Business Services Ltd,11/04/2022,Contract Staff,Project Office,Alexander Mann Solutions Ltd,99418798,"2,919.31",Recruitment Services,EC2N 3AQ
"Department for Business, Innovation and Skills",UK Shared Business Services Ltd,11/04/2022,Contract Staff,Production Services,Alexander Mann Solutions Ltd,99418804,"2,414.45",Recruitment Services,EC2N 3AQ
"Department for Business, Innovation and Skills",UK Shared Business Services Ltd,11/04/2022,Telecoms - Land Line Rental,Production Services,British Telecom Plc (BT),99418811,"12,733.78",SR 11053144 CHARGES 01/04/22-30/04/22,S98 1BT
"Department for Business, Innovation and Skills",UK Shared Business Services Ltd,11/04/2022,Recruitment Costs,Production Services,Alexander Mann Solutions Ltd,99418839,"4,434.70",Recruitment Services,EC2N 3AQ
"Department for Business, Innovation and Skills",UK Shared Business Services Ltd,11/04/2022,Contract Staff,Corporate HR,Alexander Mann Solutions Ltd,99419716,"2,123.14",Recruitment Services,EC2N 3AQ
"Department for Business, Innovation and Skills",UK Shared Business Services Ltd,11/04/2022,GPC Clearing - SSC,Balance Sheet,Unspecified,99425710,-199.8,Unspecified,HOME
"Department for Business, Innovation and Skills",UK Shared Business Services Ltd,11/04/2022,GPC Sundry Expenditure,Production Services,Unspecified,99425710,199.8,GPC_Miscellaneous GPC Expenditure,HOME
"Department for Business, Innovation and Skills",UK Shared Business Services Ltd,11/04/2022,GPC Clearing - SSC,Balance Sheet,Unspecified,99425711,-255.47,Unspecified,HOME
"Department for Business, Innovation and Skills",UK Shared Business Services Ltd,11/04/2022,Hardware/Software Maintenance,D&I Management,Unspecified,99425711,255.47,GPC_Computer Hardware/Software Maint,HOME
"Department for Business, Innovation and Skills",UK Shared Business Services Ltd,11/04/2022,GPC Clearing - SSC,Balance Sheet,Unspecified,99425712,-631.21,Unspecified,HOME
"Department for Business, Innovation and Skills",UK Shared Business Services Ltd,11/04/2022,Staff Training,D&I Management,Unspecified,99425712,631.21,GPC_Training,HOME
"Department for Business, Innovation and Skills",UK Shared Business Services Ltd,12/04/2022,Hardware/Software Maintenance,Production Services,UKRI - Engineering & Physical Sciences Research Council,98682083,"27,285.00",Computer Consumables,INTERCO
"Department for Business, Innovation and Skills",UK Shared Business Services Ltd,12/04/2022,Hardware/Software Maintenance,Production Services,UKRI - Engineering & Physical Sciences Research Council,98682083,"54,570.00",Computer Consumables,INTERCO
"Department for Business, Innovation and Skills",UK Shared Business Services Ltd,12/04/2022,Hardware/Software Maintenance,Production Services,UKRI - Engineering & Physical Sciences Research Council,98786302,"16,286.00",Computer Consumables,INTERCO
"Department for Business, Innovation and Skills",UK Shared Business Services Ltd,12/04/2022,Hardware/Software Maintenance,Production Services,UKRI - Engineering & Physical Sciences Research Council,98905928,"38,382.00",Computer Consumables,INTERCO
"Department for Business, Innovation and Skills",UK Shared Business Services Ltd,12/04/2022,PAYE Payable Salaries,Balance Sheet,HM Revenue & Customs,99399834,"190,554.66",SR11046968 HMRC monthly deductions for SSC March 2022,3RD PARTY PAYME
"Department for Business, Innovation and Skills",UK Shared Business Services Ltd,12/04/2022,NI Payable Salaries,Balance Sheet,HM Revenue & Customs,99399835,"281,345.08",SR11046968 HMRC monthly deductions for SSC March 2022,3RD PARTY PAYME
"Department for Business, Innovation and Skills",UK Shared Business Services Ltd,12/04/2022,Student Loans,Balance Sheet,HM Revenue & Customs,99399836,"2,598.00",SR11046968 HMRC monthly deductions for SSC March 2022,3RD PARTY PAYME
"Department for Business, Innovation and Skills",UK Shared Business Services Ltd,12/04/2022,Apprenticeship Levy,Corporate HR,HM Revenue & Customs,99399837,"6,884.00",SR11046968 HMRC monthly deductions for SSC March 2022,3RD PARTY PAYME
"Department for Business, Innovation and Skills",UK Shared Business Services Ltd,12/04/2022,Contract Staff,Corporate HR,Alexander Mann Solutions Ltd,99418836,"4,536.43",Recruitment Services,EC2N 3AQ
"Department for Business, Innovation and Skills",UK Shared Business Services Ltd,12/04/2022,T&S - Public Transport,Production Services,Corporate Travel Management (North) Ltd,99432725,0.25,16/03/2022----Rail Fee,BD1 5HQ
"Department for Business, Innovation and Skills",UK Shared Business Services Ltd,12/04/2022,T&S - Public Transport,Production Services,Corporate Travel Management (North) Ltd,99432725,123.6,16/03/2022--Stonehouse-ZONE U1* LONDN-Rail,BD1 5HQ
"Department for Business, Innovation and Skills",UK Shared Business Services Ltd,12/04/2022,T&S - Accommodation,Accounting,Corporate Travel Management (North) Ltd,99432725,2,27/03/2022----Hotel Fee,BD1 5HQ
"Department for Business, Innovation and Skills",UK Shared Business Services Ltd,12/04/2022,T&S - Accommodation,Accounting,Corporate Travel Management (North) Ltd,99432725,320,27/03/2022--Thistle Express Swi-Bristol-Hotel,BD1 5HQ
"Department for Business, Innovation and Skills",UK Shared Business Services Ltd,12/04/2022,T&S - Accommodation,Accounting,Corporate Travel Management (North) Ltd,99432725,0.4,Travel & Hotel charges,BD1 5HQ
"Department for Business, Innovation and Skills",UK Shared Business Services Ltd,12/04/2022,T&S - Accommodation,Central Services Management,Corporate Travel Management (North) Ltd,99432725,0.8,08/03/2022----Hotel Fee,BD1 5HQ
"Department for Business, Innovation and Skills",UK Shared Business Services Ltd,12/04/2022,T&S - Accommodation,Central Services Management,Corporate Travel Management (North) Ltd,99432725,109,08/03/2022--Swindon Marriott Ho-Swindon-Hotel,BD1 5HQ
"Department for Business, Innovation and Skills",UK Shared Business Services Ltd,12/04/2022,T&S - Accommodation,Central Services Management,Corporate Travel Management (North) Ltd,99432725,0.8,22/03/2022----Hotel Fee,BD1 5HQ
"Department for Business, Innovation and Skills",UK Shared Business Services Ltd,12/04/2022,T&S - Accommodation,Central Services Management,Corporate Travel Management (North) Ltd,99432725,0.8,24/05/2022----Hotel Fee,BD1 5HQ
"Department for Business, Innovation and Skills",UK Shared Business Services Ltd,12/04/2022,T&S - Accommodation,Central Services Management,Corporate Travel Management (North) Ltd,99432725,0.8,29/03/2022----Hotel Fee,BD1 5HQ
"Department for Business, Innovation and Skills",UK Shared Business Services Ltd,12/04/2022,T&S - Accommodation,Central Services Management,Corporate Travel Management (North) Ltd,99432725,0.64,Travel & Hotel charges,BD1 5HQ
"Department for Business, Innovation and Skills",UK Shared Business Services Ltd,12/04/2022,T&S - Accommodation,Finance Operations 2,Corporate Travel Management (North) Ltd,99432725,0.8,13/03/2022----Hotel Fee,BD1 5HQ
"Department for Business, Innovation and Skills",UK Shared Business Services Ltd,12/04/2022,T&S - Accommodation,Finance Operations 2,Corporate Travel Management (North) Ltd,99432725,207,13/03/2022--Hampton By Hilton S-Teesside-Hotel,BD1 5HQ
"Department for Business, Innovation and Skills",UK Shared Business Services Ltd,12/04/2022,T&S - Accommodation,Finance Operations 2,Corporate Travel Management (North) Ltd,99432725,0.8,13/03/2022----Hotel Fee,BD1 5HQ
"Department for Business, Innovation and Skills",UK Shared Business Services Ltd,12/04/2022,T&S - Accommodation,Finance Operations 2,Corporate Travel Management (North) Ltd,99432725,207,13/03/2022--Hampton By Hilton S-Teesside-Hotel,BD1 5HQ
"Department for Business, Innovation and Skills",UK Shared Business Services Ltd,12/04/2022,T&S - Accommodation,Finance Operations 2,Corporate Travel Management (North) Ltd,99432725,0.8,13/03/2022----Hotel Fee,BD1 5HQ
"Department for Business, Innovation and Skills",UK Shared Business Services Ltd,12/04/2022,T&S - Accommodation,Finance Operations 2,Corporate Travel Management (North) Ltd,99432725,207,13/03/2022--Hampton By Hilton S-Teesside-Hotel,BD1 5HQ
"Department for Business, Innovation and Skills",UK Shared Business Services Ltd,12/04/2022,T&S - Accommodation,Finance Operations 2,Corporate Travel Management (North) Ltd,99432725,0.48,Travel & Hotel charges,BD1 5HQ
"Department for Business, Innovation and Skills",UK Shared Business Services Ltd,12/04/2022,T&S - Accommodation,HR Ops & Specialists,Corporate Travel Management (North) Ltd,99432725,0.8,10/03/2022----Hotel Fee,BD1 5HQ
"Department for Business, Innovation and Skills",UK Shared Business Services Ltd,12/04/2022,T&S - Accommodation,HR Ops & Specialists,Corporate Travel Management (North) Ltd,99432725,105,10/03/2022-s-Cbh Hardwick Hall H-Teesside-Hotel,BD1 5HQ
"Department for Business, Innovation and Skills",UK Shared Business Services Ltd,12/04/2022,T&S - Accommodation,HR Ops & Specialists,Corporate Travel Management (North) Ltd,99432725,0.8,10/03/2022----Hotel Fee,BD1 5HQ
"Department for Business, Innovation and Skills",UK Shared Business Services Ltd,12/04/2022,T&S - Accommodation,HR Ops & Specialists,Corporate Travel Management (North) Ltd,99432725,105,10/03/2022--Cbh Hardwick Hall H-Teesside-Hotel,BD1 5HQ
"Department for Business, Innovation and Skills",UK Shared Business Services Ltd,12/04/2022,T&S - Accommodation,HR Ops & Specialists,Corporate Travel Management (North) Ltd,99432725,0.32,Travel & Hotel charges,BD1 5HQ
"Department for Business, Innovation and Skills",UK Shared Business Services Ltd,12/04/2022,T&S - Accommodation,Production Services,Corporate Travel Management (North) Ltd,99432725,0.8,16/03/2022----Hotel Fee,BD1 5HQ
"Department for Business, Innovation and Skills",UK Shared Business Services Ltd,12/04/2022,T&S - Accommodation,Production Services,Corporate Travel Management (North) Ltd,99432725,128,16/03/2022--Premier Inn London Farringdon Sm-London-Hotel,BD1 5HQ
"Department for Business, Innovation and Skills",UK Shared Business Services Ltd,12/04/2022,T&S - Accommodation,Production Services,Corporate Travel Management (North) Ltd,99432725,0.8,16/03/2022----Hotel Fee,BD1 5HQ
"Department for Business, Innovation and Skills",UK Shared Business Services Ltd,12/04/2022,T&S - Accommodation,Production Services,Corporate Travel Management (North) Ltd,99432725,128,16/03/2022-Premier Inn London Farringdon Sm-London-Hotel,BD1 5HQ
"Department for Business, Innovation and Skills",UK Shared Business Services Ltd,12/04/2022,T&S - Accommodation,Production Services,Corporate Travel Management (North) Ltd,99432725,0.32,Travel & Hotel charges,BD1 5HQ
"Department for Business, Innovation and Skills",UK Shared Business Services Ltd,12/04/2022,T&S - Accommodation,Resourcing,Corporate Travel Management (North) Ltd,99432725,0.8,10/03/2022----Hotel Fee,BD1 5HQ
"Department for Business, Innovation and Skills",UK Shared Business Services Ltd,12/04/2022,T&S - Accommodation,Resourcing,Corporate Travel Management (North) Ltd,99432725,100,10/03/2022--Cbh Hardwick Hall H-Teesside-Hotel,BD1 5HQ
"Department for Business, Innovation and Skills",UK Shared Business Services Ltd,12/04/2022,T&S - Accommodation,Resourcing,Corporate Travel Management (North) Ltd,99432725,0.16,Travel & Hotel charges,BD1 5HQ
"Department for Business, Innovation and Skills",UK Shared Business Services Ltd,12/04/2022,T&S - Other Charges,Finance Operations 2,Corporate Travel Management (North) Ltd,99432725,0.25,15/03/2022----Rail Fee,BD1 5HQ
"Department for Business, Innovation and Skills",UK Shared Business Services Ltd,12/04/2022,T&S - Other Charges,Finance Operations 2,Corporate Travel Management (North) Ltd,99432725,35,15/03/2022--Newport S.wales-Swindon-Rail,BD1 5HQ
"Department for Business, Innovation and Skills",UK Shared Business Services Ltd,12/04/2022,T&S - Other Charges,Finance Operations 2,Corporate Travel Management (North) Ltd,99432725,0.25,30/03/2022----Rail Fee,BD1 5HQ
"Department for Business, Innovation and Skills",UK Shared Business Services Ltd,12/04/2022,T&S - Other Charges,Finance Operations 2,Corporate Travel Management (North) Ltd,99432725,35,30/03/2022--Newport S.wales-Swindon-Rail,BD1 5HQ
"Department for Business, Innovation and Skills",UK Shared Business Services Ltd,12/04/2022,T&S - Other Charges,Finance Operations 2,Corporate Travel Management (North) Ltd,99432725,0.25,30/03/2022----Rail Fee,BD1 5HQ
"Department for Business, Innovation and Skills",UK Shared Business Services Ltd,12/04/2022,T&S - Other Charges,Finance Operations 2,Corporate Travel Management (North) Ltd,99432725,35,30/03/2022--Newport S.wales-Swindon-Rail,BD1 5HQ
"Department for Business, Innovation and Skills",UK Shared Business Services Ltd,12/04/2022,T&S - Public Transport,Category and Continuous Improvement,Corporate Travel Management (North) Ltd,99432725,0.25,09/03/2022----Rail Fee,BD1 5HQ
"Department for Business, Innovation and Skills",UK Shared Business Services Ltd,12/04/2022,T&S - Public Transport,Category and Continuous Improvement,Corporate Travel Management (North) Ltd,99432725,49.2,09/03/2022--Bridgend-Swindon-Rail,BD1 5HQ
"Department for Business, Innovation and Skills",UK Shared Business Services Ltd,12/04/2022,T&S - Public Transport,Category and Continuous Improvement,Corporate Travel Management (North) Ltd,99432725,0.25,30/03/2022----Rail Fee,BD1 5HQ
"Department for Business, Innovation and Skills",UK Shared Business Services Ltd,12/04/2022,T&S - Public Transport,Category and Continuous Improvement,Corporate Travel Management (North) Ltd,99432725,35,30/03/2022--Newport S.wales-Swindon-Rail,BD1 5HQ
"Department for Business, Innovation and Skills",UK Shared Business Services Ltd,12/04/2022,T&S - Public Transport,Category and Continuous Improvement,Corporate Travel Management (North) Ltd,99432725,0.25,31/03/2022----Rail Fee,BD1 5HQ
"Department for Business, Innovation and Skills",UK Shared Business Services Ltd,12/04/2022,T&S - Public Transport,Category and Continuous Improvement,Corporate Travel Management (North) Ltd,99432725,40.7,31/03/2022--Cardiff Central-Swindon-Rail,BD1 5HQ
"Department for Business, Innovation and Skills",UK Shared Business Services Ltd,12/04/2022,T&S - Public Transport,Category and Continuous Improvement,Corporate Travel Management (North) Ltd,99432725,0.25,31/03/2022----Rail Fee,BD1 5HQ
"Department for Business, Innovation and Skills",UK Shared Business Services Ltd,12/04/2022,T&S - Public Transport,Category and Continuous Improvement,Corporate Travel Management (North) Ltd,99432725,49.2,31/03/2022-Bridgend-Swindon-Rail,BD1 5HQ
"Department for Business, Innovation and Skills",UK Shared Business Services Ltd,12/04/2022,T&S - Public Transport,Central Services Management,Corporate Travel Management (North) Ltd,99432725,0.5,08/03/2022----Rail Fee,BD1 5HQ
"Department for Business, Innovation and Skills",UK Shared Business Services Ltd,12/04/2022,T&S - Public Transport,Central Services Management,Corporate Travel Management (North) Ltd,99432725,336.4,08/03/2022--Darlington-ZONE U1* LONDN-Rail,BD1 5HQ
"Department for Business, Innovation and Skills",UK Shared Business Services Ltd,12/04/2022,T&S - Public Transport,Central Services Management,Corporate Travel Management (North) Ltd,99432725,54,08/03/2022--London Paddington-Swindon-Rail,BD1 5HQ
"Department for Business, Innovation and Skills",UK Shared Business Services Ltd,12/04/2022,T&S - Public Transport,Core Services,Corporate Travel Management (North) Ltd,99432725,0.25,31/03/2022----Rail Fee,BD1 5HQ
"Department for Business, Innovation and Skills",UK Shared Business Services Ltd,12/04/2022,T&S - Public Transport,Core Services,Corporate Travel Management (North) Ltd,99432725,40.7,31/03/2022--Cathays-Swindon-Rail,BD1 5HQ
"Department for Business, Innovation and Skills",UK Shared Business Services Ltd,12/04/2022,T&S - Public Transport,Corporate Finance,Corporate Travel Management (North) Ltd,99432725,0.25,10/03/2022----Rail Fee,BD1 5HQ
"Department for Business, Innovation and Skills",UK Shared Business Services Ltd,12/04/2022,T&S - Public Transport,Corporate Finance,Corporate Travel Management (North) Ltd,99432725,35,10/03/2022--Newport S.wales-Swindon-Rail,BD1 5HQ
"Department for Business, Innovation and Skills",UK Shared Business Services Ltd,12/04/2022,T&S - Public Transport,Corporate Finance,Corporate Travel Management (North) Ltd,99432725,0.25,10/03/2022----Rail Fee,BD1 5HQ
"Department for Business, Innovation and Skills",UK Shared Business Services Ltd,12/04/2022,T&S - Public Transport,Corporate Finance,Corporate Travel Management (North) Ltd,99432725,33.7,10/03/2022--Pontypool And New Inn-Swindon-Rail,BD1 5HQ
"Department for Business, Innovation and Skills",UK Shared Business Services Ltd,12/04/2022,T&S - Public Transport,Corporate Finance,Corporate Travel Management (North) Ltd,99432725,0.25,15/03/2022----Rail Fee,BD1 5HQ
"Department for Business, Innovation and Skills",UK Shared Business Services Ltd,12/04/2022,T&S - Public Transport,Corporate Finance,Corporate Travel Management (North) Ltd,99432725,23,15/03/2022--Newport S.wales-Swindon-Rail,BD1 5HQ
"Department for Business, Innovation and Skills",UK Shared Business Services Ltd,12/04/2022,T&S - Public Transport,Corporate Finance,Corporate Travel Management (North) Ltd,99432725,0.25,15/03/2022----Rail Fee,BD1 5HQ
"Department for Business, Innovation and Skills",UK Shared Business Services Ltd,12/04/2022,T&S - Public Transport,Corporate Finance,Corporate Travel Management (North) Ltd,99432725,35,15/03/2022--Pontypool And New Inn-Swindon-Rail,BD1 5HQ
"Department for Business, Innovation and Skills",UK Shared Business Services Ltd,12/04/2022,T&S - Public Transport,Corporate Finance,Corporate Travel Management (North) Ltd,99432725,0.25,15/03/2022----Rail Fee,BD1 5HQ
"Department for Business, Innovation and Skills",UK Shared Business Services Ltd,12/04/2022,T&S - Public Transport,Corporate Finance,Corporate Travel Management (North) Ltd,99432725,35,15/03/2022--Newport S.wales-Swindon-Rail,BD1 5HQ
"Department for Business, Innovation and Skills",UK Shared Business Services Ltd,12/04/2022,T&S - Public Transport,Corporate Finance,Corporate Travel Management (North) Ltd,99432725,0.25,24/03/2022----Rail Fee,BD1 5HQ
"Department for Business, Innovation and Skills",UK Shared Business Services Ltd,12/04/2022,T&S - Public Transport,Corporate Finance,Corporate Travel Management (North) Ltd,99432725,35,24/03/2022--Swindon (wilts)-Newport Gwent-Rail,BD1 5HQ
"Department for Business, Innovation and Skills",UK Shared Business Services Ltd,12/04/2022,T&S - Public Transport,Corporate Finance,Corporate Travel Management (North) Ltd,99432725,0.25,31/03/2022----Rail Fee,BD1 5HQ
"Department for Business, Innovation and Skills",UK Shared Business Services Ltd,12/04/2022,T&S - Public Transport,Corporate Finance,Corporate Travel Management (North) Ltd,99432725,35,31/03/2022--Newport S.wales-Swindon-Rail,BD1 5HQ
"Department for Business, Innovation and Skills",UK Shared Business Services Ltd,12/04/2022,T&S - Public Transport,Corporate Finance,Corporate Travel Management (North) Ltd,99432725,0.25,31/03/2022----Rail Fee,BD1 5HQ
"Department for Business, Innovation and Skills",UK Shared Business Services Ltd,12/04/2022,T&S - Public Transport,Corporate Finance,Corporate Travel Management (North) Ltd,99432725,35,31/03/2022--Pontypool And New Inn-Swindon-Rail,BD1 5HQ
"Department for Business, Innovation and Skills",UK Shared Business Services Ltd,12/04/2022,T&S - Public Transport,Corporate Finance,Corporate Travel Management (North) Ltd,99432725,0.25,31/03/2022----Rail Fee,BD1 5HQ
"Department for Business, Innovation and Skills",UK Shared Business Services Ltd,12/04/2022,T&S - Public Transport,Corporate Finance,Corporate Travel Management (North) Ltd,99432725,35,31/03/2022--Newport S.wales-Swindon-Rail,BD1 5HQ
"Department for Business, Innovation and Skills",UK Shared Business Services Ltd,12/04/2022,T&S - Public Transport,DDaT,Corporate Travel Management (North) Ltd,99432725,0.25,21/03/2022----Rail Fee,BD1 5HQ
"Department for Business, Innovation and Skills",UK Shared Business Services Ltd,12/04/2022,T&S - Public Transport,DDaT,Corporate Travel Management (North) Ltd,99432725,40.7,21/03/2022--Cardiff Central-Swindon-Rail,BD1 5HQ
"Department for Business, Innovation and Skills",UK Shared Business Services Ltd,12/04/2022,T&S - Public Transport,DDaT,Corporate Travel Management (North) Ltd,99432725,0.25,25/03/2022----Rail Fee,BD1 5HQ
"Department for Business, Innovation and Skills",UK Shared Business Services Ltd,12/04/2022,T&S - Public Transport,DDaT,Corporate Travel Management (North) Ltd,99432725,40.7,25/03/2022--Cardiff Central-Swindon-Rail,BD1 5HQ
"Department for Business, Innovation and Skills",UK Shared Business Services Ltd,12/04/2022,T&S - Public Transport,DDaT,Corporate Travel Management (North) Ltd,99432725,0.25,31/03/2022----Rail Fee,BD1 5HQ
"Department for Business, Innovation and Skills",UK Shared Business Services Ltd,12/04/2022,T&S - Public Transport,DDaT,Corporate Travel Management (North) Ltd,99432725,40.7,31/03/2022--Cardiff Central-Swindon-Rail,BD1 5HQ
"Department for Business, Innovation and Skills",UK Shared Business Services Ltd,12/04/2022,T&S - Public Transport,Finance Operations 2,Corporate Travel Management (North) Ltd,99432725,0.25,30/03/2022----Rail Fee,BD1 5HQ
"Department for Business, Innovation and Skills",UK Shared Business Services Ltd,12/04/2022,T&S - Public Transport,Finance Operations 2,Corporate Travel Management (North) Ltd,99432725,35,30/03/2022--Newport S.wales-Swindon-Rail,BD1 5HQ
"Department for Business, Innovation and Skills",UK Shared Business Services Ltd,12/04/2022,T&S - Public Transport,ISS Recoverables - TSB,Corporate Travel Management (North) Ltd,99432725,0.25,15/03/2022----Rail Fee,BD1 5HQ
"Department for Business, Innovation and Skills",UK Shared Business Services Ltd,12/04/2022,T&S - Public Transport,ISS Recoverables - TSB,Corporate Travel Management (North) Ltd,99432725,26.2,15/03/2022--Swindon (wilts)-Bristol Parkway-Rail,BD1 5HQ
"Department for Business, Innovation and Skills",UK Shared Business Services Ltd,12/04/2022,T&S - Public Transport,Partnership Management,Corporate Travel Management (North) Ltd,99432725,0.25,04/04/2022----Rail Fee,BD1 5HQ
"Department for Business, Innovation and Skills",UK Shared Business Services Ltd,12/04/2022,T&S - Public Transport,Partnership Management,Corporate Travel Management (North) Ltd,99432725,264,04/04/2022--Peterborough-Swindon-Rail,BD1 5HQ
"Department for Business, Innovation and Skills",UK Shared Business Services Ltd,12/04/2022,T&S - Public Transport,Production Services,Corporate Travel Management (North) Ltd,99432725,0.25,14/03/2022----Rail Fee,BD1 5HQ
"Department for Business, Innovation and Skills",UK Shared Business Services Ltd,12/04/2022,T&S - Public Transport,Production Services,Corporate Travel Management (North) Ltd,99432725,135.2,14/03/2022--Chippenham-ZONE U1* LONDN-Rail,BD1 5HQ
"Department for Business, Innovation and Skills",UK Shared Business Services Ltd,12/04/2022,T&S - Public Transport,Production Services,Corporate Travel Management (North) Ltd,99432725,0.25,14/03/2022----Rail Fee,BD1 5HQ
"Department for Business, Innovation and Skills",UK Shared Business Services Ltd,12/04/2022,T&S - Public Transport,Production Services,Corporate Travel Management (North) Ltd,99432725,119.4,14/03/2022--Gloucester-ZONE U1* LONDN-Rail,BD1 5HQ
"Department for Business, Innovation and Skills",UK Shared Business Services Ltd,12/04/2022,T&S - Public Transport,Production Services,Corporate Travel Management (North) Ltd,99432725,0.25,16/03/2022----Rail Fee,BD1 5HQ
"Department for Business, Innovation and Skills",UK Shared Business Services Ltd,12/04/2022,T&S - Public Transport,Production Services,Corporate Travel Management (North) Ltd,99432725,135.2,16/03/2022--Chippenham-ZONE U1* LONDN-Rail,BD1 5HQ
"Department for Business, Innovation and Skills",UK Shared Business Services Ltd,12/04/2022,T&S - Public Transport,Production Services,Corporate Travel Management (North) Ltd,99432725,0.25,22/03/2022----Rail Fee,BD1 5HQ
"Department for Business, Innovation and Skills",UK Shared Business Services Ltd,12/04/2022,T&S - Public Transport,Production Services,Corporate Travel Management (North) Ltd,99432725,23.5,22/03/2022--Swindon (wilts)-Bristol Parkway-Rail,BD1 5HQ
"Department for Business, Innovation and Skills",UK Shared Business Services Ltd,12/04/2022,T&S - Public Transport,Project Office,Corporate Travel Management (North) Ltd,99432725,-145,22/02/2022-Middlesbrough-Swindon-Rail,BD1 5HQ
"Department for Business, Innovation and Skills",UK Shared Business Services Ltd,12/04/2022,T&S - Public Transport,Project Office,Corporate Travel Management (North) Ltd,99432725,-145,22/02/2022--Middlesbrough-Swindon-Rail,BD1 5HQ
"Department for Business, Innovation and Skills",UK Shared Business Services Ltd,12/04/2022,T&S - Subsistence,Resourcing,Unspecified,99435727,11.35,Evening Meal (Actuals),HOME
"Department for Business, Innovation and Skills",UK Shared Business Services Ltd,12/04/2022,T&S - Subsistence,Resourcing,Unspecified,99435727,6.65,Lunch (Actuals),HOME
"Department for Business, Innovation and Skills",UK Shared Business Services Ltd,12/04/2022,T&S - Public Transport,Procurement Policy & Strategy,Unspecified,99435728,2.8,Public Transport - Bus (Actuals),HOME
"Department for Business, Innovation and Skills",UK Shared Business Services Ltd,12/04/2022,T&S - Public Transport,Procurement Policy & Strategy,Unspecified,99435728,22,Public Transport - Taxi Fare (Actuals),HOME
"Department for Business, Innovation and Skills",UK Shared Business Services Ltd,12/04/2022,T&S - Subsistence,Procurement Policy & Strategy,Unspecified,99435728,8.94,Lunch (Actuals),HOME
"Department for Business, Innovation and Skills",UK Shared Business Services Ltd,13/04/2022,Voluntary Deductions,Balance Sheet,Civil Service Benevolent Fund,99399839,18,SR11046968 SSC THIRD PARTY PAYMENTS March2022,SM3 8DY
"Department for Business, Innovation and Skills",UK Shared Business Services Ltd,13/04/2022,Voluntary Deductions,Balance Sheet,Swindon Office Sports and Social Club,99399840,186,SR11046968 SSC THIRD PARTY PAYMENTS March2022,SN2 1EU
"Department for Business, Innovation and Skills",UK Shared Business Services Ltd,13/04/2022,Ees Pension Deductions - JSS,Balance Sheet,RCPS Pension,99399841,401.52,SR11046968 RCPS monthly contributions for SSC March2022,SN2 1UY.
"Department for Business, Innovation and Skills",UK Shared Business Services Ltd,13/04/2022,Ers Pension Deductions - JSS,Balance Sheet,RCPS Pension,99399842,"1,006.53",SR11046968 RCPS monthly contributions for SSC March2022,SN2 1UY.
"Department for Business, Innovation and Skills",UK Shared Business Services Ltd,13/04/2022,Other Pension Deductions,Balance Sheet,Scottish Widows,99399843,100,SR11046968 SSC THIRD PARTY PAYMENTS March2022,EH16 5BU
"Department for Business, Innovation and Skills",UK Shared Business Services Ltd,13/04/2022,Partnership Pension Deductions,Balance Sheet,Scottish Widows,99399844,"3,726.90",SR11046968 SSC THIRD PARTY PAYMENTS March2022,EH16 5BU
"Department for Business, Innovation and Skills",UK Shared Business Services Ltd,13/04/2022,Partnership Pension Deductions,Balance Sheet,Standard Life Assurance Ltd,99399845,227.14,SR11046968 SSC THIRD PARTY PAYMENTS March2022,EH1 2DH
"Department for Business, Innovation and Skills",UK Shared Business Services Ltd,13/04/2022,Other Pension Deductions,Balance Sheet,Equiniti Ltd,99399846,396.11,SR11046968 SSC THIRD PARTY PAYMENTS March2022,BN99 9AP
"Department for Business, Innovation and Skills",UK Shared Business Services Ltd,13/04/2022,Partnership Pension Deductions,Balance Sheet,Prudential Plc,99399848,400.96,SR11046968 SSC THIRD PARTY PAYMENTS March2022,EC4R 0HH
"Department for Business, Innovation and Skills",UK Shared Business Services Ltd,13/04/2022,Voluntary Deductions,Balance Sheet,BHCA (Services) Ltd,99399849,59.15,SR11046968 SSC THIRD PARTY PAYMENTS March2022,NN14 1UE
"Department for Business, Innovation and Skills",UK Shared Business Services Ltd,13/04/2022,Ees Pension Deductions - MyCSP,Balance Sheet,Cabinet Office RM Shared Services,99399850,145.36,SR11046968 UKSBS THIRD PARTY PAYMENTS March 2022,FY5 3TA
"Department for Business, Innovation and Skills",UK Shared Business Services Ltd,13/04/2022,Ers Pension Deductions - MyCSP,Balance Sheet,Cabinet Office RM Shared Services,99399851,722.78,SR11046968 UKSBS THIRD PARTY PAYMENTS March 2022,FY5 3TA
"Department for Business, Innovation and Skills",UK Shared Business Services Ltd,13/04/2022,Union Deductions,Balance Sheet,PCS Union,99399852,994.98,SR11046968 SSC THIRD PARTY PAYMENTS March2022,SW11 2LN
"Department for Business, Innovation and Skills",UK Shared Business Services Ltd,13/04/2022,Ees Pension Deductions - MRC,Balance Sheet,JLT Pensions Administration Ltd T/A JLT Employee Benefits,99399853,"4,696.64",SR11046968 SSC THIRD PARTY PAYMENTS March2022,PRINCIPAL SECTI
"Department for Business, Innovation and Skills",UK Shared Business Services Ltd,13/04/2022,Ers Pension Deductions - MRC,Balance Sheet,JLT Pensions Administration Ltd T/A JLT Employee Benefits,99399854,"12,211.28",SR11046968 SSC THIRD PARTY PAYMENTS March2022,PRINCIPAL SECTI
"Department for Business, Innovation and Skills",UK Shared Business Services Ltd,13/04/2022,Computer Hardware,DR Upgrade,Softcat plc,99435990,"3,263.88",Computer Consumables,SL7 1LW
"Department for Business, Innovation and Skills",UK Shared Business Services Ltd,13/04/2022,Computer Hardware,DR Upgrade,Softcat plc,99435990,300,Computer Consumables,SL7 1LW
"Department for Business, Innovation and Skills",UK Shared Business Services Ltd,13/04/2022,Computer Hardware,DR Upgrade,Softcat plc,99435990,"146,608.33",Computer Consumables,SL7 1LW
"Department for Business, Innovation and Skills",UK Shared Business Services Ltd,13/04/2022,Computer Hardware,DR Upgrade,Softcat plc,99435990,"56,870.21",Computer Consumables,SL7 1LW
"Department for Business, Innovation and Skills",UK Shared Business Services Ltd,13/04/2022,Computer Software Licences,SIAM,Softcat plc,99436011,772.96,Computing Software,SL7 1LW
"Department for Business, Innovation and Skills",UK Shared Business Services Ltd,13/04/2022,Nursery Deductions,Balance Sheet,EDENRED (UK GROUP) LTD,99439710,"1,618.50",SR 11056986 CHILDCARE VOUCHERS APRIL 2022,SW1V 2RS
"Department for Business, Innovation and Skills",UK Shared Business Services Ltd,13/04/2022,T&S - Vehicle Hire,Production Services,Enterprise Rent-A-Car UK Ltd,99439772,87.49,,GL2 5DA
"Department for Business, Innovation and Skills",UK Shared Business Services Ltd,13/04/2022,T&S - Vehicle Hire,Production Services,Enterprise Rent-A-Car UK Ltd,99439772,17.5,SR 11054574 CAR HIRE,GL2 5DA
"Department for Business, Innovation and Skills",UK Shared Business Services Ltd,13/04/2022,Consultancy Services,Production Services,EVOLVE SECURE SOLUTIONS LTD,99442720,"3,420.00",Computer Consumables,SE1 8RT
"Department for Business, Innovation and Skills",UK Shared Business Services Ltd,14/04/2022,Staff Training,HRSD Recoverables,ASK Europe PLC,99344176,156,Training,MK43 0BT
"Department for Business, Innovation and Skills",UK Shared Business Services Ltd,14/04/2022,Staff Training,HRSD Recoverables,ASK Europe PLC,99344176,780,Training,MK43 0BT
"Department for Business, Innovation and Skills",UK Shared Business Services Ltd,14/04/2022,Recruitment Costs,People,Robert Half Ltd,99442833,"9,300.00",Professional Services,B37 7GN
"Department for Business, Innovation and Skills",UK Shared Business Services Ltd,14/04/2022,Other Staff Benefits,Corporate HR,EDENRED (UK GROUP) LTD,99445743,524.95,Professional Services,SW1V 2RS
"Department for Business, Innovation and Skills",UK Shared Business Services Ltd,14/04/2022,Corporate Events,Executive Function,Calder Conference Ltd,99453712,"5,580.00",Conference & Venues,LS16 6RF
"Department for Business, Innovation and Skills",UK Shared Business Services Ltd,14/04/2022,T&S - Parking Tolls Congestion Charges,Accounting,Unspecified,99453744,10,"Parking, Tolls, Congestion Charge",HOME
"Department for Business, Innovation and Skills",UK Shared Business Services Ltd,19/04/2022,Recruitment Costs,Corporate HR,Agenda Resource Management Ltd,99400722,-23,Professional Services,HU12 8YJ
"Department for Business, Innovation and Skills",UK Shared Business Services Ltd,19/04/2022,Computer Software Licences,Production Services,Softcat plc,99435987,"42,180.00",Computer Consumables,SL7 1LW
"Department for Business, Innovation and Skills",UK Shared Business Services Ltd,19/04/2022,Computer Software Licences,Production Services,Softcat plc,99435987,"10,584.00",Computer Consumables,SL7 1LW
"Department for Business, Innovation and Skills",UK Shared Business Services Ltd,19/04/2022,Computer Software Licences,Production Services,Softcat plc,99435987,"5,400.00",Computer Consumables,SL7 1LW
"Department for Business, Innovation and Skills",UK Shared Business Services Ltd,19/04/2022,Computer Software Licences,Production Services,Softcat plc,99435987,"19,116.00",Computer Consumables,SL7 1LW
"Department for Business, Innovation and Skills",UK Shared Business Services Ltd,19/04/2022,Computer Software Licences,Production Services,Softcat plc,99435987,"31,716.00",Computer Consumables,SL7 1LW
"Department for Business, Innovation and Skills",UK Shared Business Services Ltd,19/04/2022,IT Cloud Services,SIAM,Academia Ltd,99441792,"2,867.33",Computer Consumables,HP2 7DW
"Department for Business, Innovation and Skills",UK Shared Business Services Ltd,19/04/2022,IT Cloud Services,SIAM,Academia Ltd,99441792,978.47,Computer Consumables,HP2 7DW
"Department for Business, Innovation and Skills",UK Shared Business Services Ltd,19/04/2022,Recruitment Costs,Corporate HR,Agenda Resource Management Ltd,99448745,335.98,Professional Services,HU12 8YJ
"Department for Business, Innovation and Skills",UK Shared Business Services Ltd,19/04/2022,Recruitment Costs,Corporate HR,Agenda Resource Management Ltd,99448748,92.8,Professional Services,HU12 8YJ
"Department for Business, Innovation and Skills",UK Shared Business Services Ltd,19/04/2022,T&S - Mileage,Contact Centres,Unspecified,99464711,102.6,Mileage - Car (excl Home to Office),HOME
"Department for Business, Innovation and Skills",UK Shared Business Services Ltd,19/04/2022,T&S - Parking Tolls Congestion Charges,Operational Excellence,Unspecified,99464712,10,"Parking, Tolls, Congestion Charge",HOME
"Department for Business, Innovation and Skills",UK Shared Business Services Ltd,19/04/2022,T&S - Other Charges,People,Unspecified,99467710,169.99,Home-working Equipment,HOME
"Department for Business, Innovation and Skills",UK Shared Business Services Ltd,20/04/2022,UK - Professional Memberships & Subscriptions,Corporate HR,LNRS Data Services Ltd,99477715,"13,603.20",Professional Memberships,SM2 5AS
"Department for Business, Innovation and Skills",UK Shared Business Services Ltd,20/04/2022,Recruitment Costs,People,Onefix Recruitment Ltd,99478715,240,Recruitment Services,PO3 5EJ
"Department for Business, Innovation and Skills",UK Shared Business Services Ltd,20/04/2022,Recruitment Costs,People,Onefix Recruitment Ltd,99478718,300,Recruitment Services,PO3 5EJ
"Department for Business, Innovation and Skills",UK Shared Business Services Ltd,20/04/2022,Recruitment Costs,People,Onefix Recruitment Ltd,99478719,240,Recruitment Services,PO3 5EJ
"Department for Business, Innovation and Skills",UK Shared Business Services Ltd,20/04/2022,Recruitment Costs,People,Onefix Recruitment Ltd,99478721,240,Recruitment Services,PO3 5EJ
"Department for Business, Innovation and Skills",UK Shared Business Services Ltd,20/04/2022,Recruitment Costs,People,Onefix Recruitment Ltd,99478722,360,Recruitment Services,PO3 5EJ
"Department for Business, Innovation and Skills",UK Shared Business Services Ltd,20/04/2022,Recruitment Costs,People,Onefix Recruitment Ltd,99478724,360,Recruitment Services,PO3 5EJ
"Department for Business, Innovation and Skills",UK Shared Business Services Ltd,20/04/2022,Recruitment Costs,People,Onefix Recruitment Ltd,99478725,360,Recruitment Services,PO3 5EJ
"Department for Business, Innovation and Skills",UK Shared Business Services Ltd,20/04/2022,Contract Staff,Production Services,Alexander Mann Solutions Ltd,99478737,"5,297.04",Recruitment Services,EC2N 3AQ
"Department for Business, Innovation and Skills",UK Shared Business Services Ltd,20/04/2022,Contract Staff,Corporate Commercial,Alexander Mann Solutions Ltd,99478748,"6,303.12",Recruitment Services,EC2N 3AQ
"Department for Business, Innovation and Skills",UK Shared Business Services Ltd,20/04/2022,Contract Staff,Corporate HR,Alexander Mann Solutions Ltd,99478750,"3,780.36",Recruitment Services,EC2N 3AQ
"Department for Business, Innovation and Skills",UK Shared Business Services Ltd,20/04/2022,UK - Professional Memberships & Subscriptions,SIAM,Unspecified,99482754,48.13,Professional Subscriptions (Actuals),HOME
"Department for Business, Innovation and Skills",UK Shared Business Services Ltd,22/04/2022,Telecoms - Maintenance & Repairs,Production Services,SCB Global Ltd,99502715,"2,045.08",Telephony,E14 5AA
"Department for Business, Innovation and Skills",UK Shared Business Services Ltd,22/04/2022,T&S - Parking Tolls Congestion Charges,Operational Excellence,Unspecified,99511725,10,"Parking, Tolls, Congestion Charge",HOME
"Department for Business, Innovation and Skills",UK Shared Business Services Ltd,25/04/2022,Computing Consumables,D&I Operations,Probrand Ltd,99183067,2.4,Computer Consumables,SMARTFORM
"Department for Business, Innovation and Skills",UK Shared Business Services Ltd,25/04/2022,Telecoms - Non Capital Hardware Costs,Production Services,Probrand Ltd,99183067,452.16,Telephony,SMARTFORM
"Department for Business, Innovation and Skills",UK Shared Business Services Ltd,25/04/2022,GPC Clearing - SSC,Balance Sheet,Unspecified,99435729,-199,Unspecified,HOME
"Department for Business, Innovation and Skills",UK Shared Business Services Ltd,25/04/2022,GPC Sundry Expenditure,HRSD Recoverables,Unspecified,99435729,199,GPC_Miscellaneous GPC Expenditure,HOME
"Department for Business, Innovation and Skills",UK Shared Business Services Ltd,25/04/2022,Computing Consumables,Facilities,Unspecified,99435730,166.01,GPC_Computer Consumables,HOME
"Department for Business, Innovation and Skills",UK Shared Business Services Ltd,25/04/2022,GPC Clearing - SSC,Balance Sheet,Unspecified,99435730,-253.54,Unspecified,HOME
"Department for Business, Innovation and Skills",UK Shared Business Services Ltd,25/04/2022,GPC Sundry Expenditure,Facilities,Unspecified,99435730,87.53,GPC_Miscellaneous GPC Expenditure,HOME
"Department for Business, Innovation and Skills",UK Shared Business Services Ltd,25/04/2022,Recruitment Costs,Corporate HR,Agenda Resource Management Ltd,99508717,297.82,Professional Services,HU12 8YJ
"Department for Business, Innovation and Skills",UK Shared Business Services Ltd,25/04/2022,Contract Staff,Corporate HR,Alexander Mann Solutions Ltd,99512782,"3,024.29",Recruitment Services,EC2N 3AQ
"Department for Business, Innovation and Skills",UK Shared Business Services Ltd,25/04/2022,Computing Consumables,D&I Operations,Probrand Ltd,99514742,-2.4,Computer Consumables,SMARTFORM
"Department for Business, Innovation and Skills",UK Shared Business Services Ltd,25/04/2022,Staff Training,HRSD Recoverables,The Retirement Counselling Service Ltd,99516730,"1,320.00",Training,HP6 6JQ
"Department for Business, Innovation and Skills",UK Shared Business Services Ltd,25/04/2022,Legal & Professional Services,Finance Operations 2,Legal Recoveries and Collections Ltd,99518738,30,Professional Services,NG1 3BF
"Department for Business, Innovation and Skills",UK Shared Business Services Ltd,25/04/2022,Legal & Professional Services,People,LNRS Data Services Ltd,99519747,"8,672.27",Professional Services,SM2 5AS GBP
"Department for Business, Innovation and Skills",UK Shared Business Services Ltd,25/04/2022,Computing Consumables,D&I Management,Unspecified,99522734,122.4,GPC_Computer Consumables,HOME
"Department for Business, Innovation and Skills",UK Shared Business Services Ltd,25/04/2022,GPC Clearing - SSC,Balance Sheet,Unspecified,99522734,-122.4,Unspecified,HOME
"Department for Business, Innovation and Skills",UK Shared Business Services Ltd,26/04/2022,T&S - Other Charges,Tier 1 BOE Transactions,Unspecified,99396754,80,Miscellaneous (Actuals),HOME
"Department for Business, Innovation and Skills",UK Shared Business Services Ltd,26/04/2022,Conferences & Seminars,Production Services,Live Illustration Ltd,99519717,"1,200.00",Conference & Venues,OX3 7AQ
"Department for Business, Innovation and Skills",UK Shared Business Services Ltd,26/04/2022,Other Staff Benefits,People,Benenden Healthcare Society,99522753,"21,408.10",Professional Memberships,YO26 4GG
"Department for Business, Innovation and Skills",UK Shared Business Services Ltd,26/04/2022,Internal Audit,"Risk, Information & Security Compliance",HM Treasury Group,99533715,"54,000.00",Professional Services,NR7 0HS
"Department for Business, Innovation and Skills",UK Shared Business Services Ltd,26/04/2022,T&S - Other Charges,"Risk, Information & Security Compliance",Unspecified,99534755,80,Miscellaneous (Actuals),HOME
"Department for Business, Innovation and Skills",UK Shared Business Services Ltd,27/04/2022,Computer Software Licences,Production Services,Phoenix Software Ltd,99383742,"-3,247.20",Computer Consumables,YO42 1NS
"Department for Business, Innovation and Skills",UK Shared Business Services Ltd,27/04/2022,Consultancy Services,Interfaces & API Mgmt,Software AG (UK) Ltd,99425929,"8,503.12",Computer Consumables,DE24 8BY
"Department for Business, Innovation and Skills",UK Shared Business Services Ltd,27/04/2022,Computer Software Licences,Production Services,Phoenix Software Ltd,99481729,3.31,Computer Consumables,YO42 1NS
"Department for Business, Innovation and Skills",UK Shared Business Services Ltd,27/04/2022,Computer Software Licences,Production Services,Phoenix Software Ltd,99494734,"7,975.87",Computer Consumables,YO42 1NS
"Department for Business, Innovation and Skills",UK Shared Business Services Ltd,27/04/2022,Recruitment Costs,People,Onefix Recruitment Ltd,99520717,360,Recruitment Services,PO3 5EJ
"Department for Business, Innovation and Skills",UK Shared Business Services Ltd,27/04/2022,Recruitment Costs,People,Onefix Recruitment Ltd,99520719,360,Recruitment Services,PO3 5EJ
"Department for Business, Innovation and Skills",UK Shared Business Services Ltd,27/04/2022,T&S - Mileage,Category and Continuous Improvement,Unspecified,99555768,77.49,Mileage - Car (excl Home to Office),HOME
"Department for Business, Innovation and Skills",UK Shared Business Services Ltd,28/04/2022,Telecoms - Maintenance & Repairs,Production Services,SCB Global Ltd,99494785,"20,021.76",Computer Consumables,E14 5AA
"Department for Business, Innovation and Skills",UK Shared Business Services Ltd,28/04/2022,Telecoms - Maintenance & Repairs,Production Services,SCB Global Ltd,99494785,"27,319.68",Computer Consumables,E14 5AA
"Department for Business, Innovation and Skills",UK Shared Business Services Ltd,28/04/2022,Telecoms - Maintenance & Repairs,Production Services,SCB Global Ltd,99494785,"6,026.40",Computer Consumables,E14 5AA
"Department for Business, Innovation and Skills",UK Shared Business Services Ltd,28/04/2022,Consultancy Services,Communications,The Digital Accessibility Centre Ltd,99565718,"6,480.00",Consultancy Services,SA10 6FG
"Department for Business, Innovation and Skills",UK Shared Business Services Ltd,28/04/2022,Conferences & Seminars,Production Services,Live Illustration Ltd,99570727,960,Conference & Venues,OX3 7AQ
"Department for Business, Innovation and Skills",UK Shared Business Services Ltd,28/04/2022,T&S - Mileage,Contact Centres,Unspecified,99571742,112.5,Mileage - Car (excl Home to Office),HOME
"Department for Business, Innovation and Skills",UK Shared Business Services Ltd,28/04/2022,T&S - Subsistence,Contact Centres,Unspecified,99571742,22.9,Evening Meal (Actuals),HOME
"Department for Business, Innovation and Skills",UK Shared Business Services Ltd,28/04/2022,Health & Safety (inc. Medicals & Opticians),Resourcing,Unspecified,99571743,80,Medical Fees & Vaccinations (Actuals),HOME
"Department for Business, Innovation and Skills",UK Shared Business Services Ltd,28/04/2022,T&S - Public Transport,Contact Centres,Unspecified,99571744,42.05,Public Transport - Taxi Fare (Actuals),HOME
"Department for Business, Innovation and Skills",UK Shared Business Services Ltd,28/04/2022,T&S - Subsistence,Contact Centres,Unspecified,99571744,16.95,Evening Meal (Actuals),HOME
"Department for Business, Innovation and Skills",UK Shared Business Services Ltd,28/04/2022,T&S - Subsistence,Contact Centres,Unspecified,99571744,7.3,Lunch (Actuals),HOME
"Department for Business, Innovation and Skills",UK Shared Business Services Ltd,28/04/2022,T&S - Public Transport,Tier 1 BOE Transactions,Unspecified,99571745,155.4,Public Transport - Train (Actuals),HOME
"Department for Business, Innovation and Skills",UK Shared Business Services Ltd,28/04/2022,T&S - Subsistence,Tier 1 BOE Transactions,Unspecified,99571745,12.95,Evening Meal (Actuals),HOME
"Department for Business, Innovation and Skills",UK Shared Business Services Ltd,28/04/2022,T&S - Subsistence,Tier 1 BOE Transactions,Unspecified,99571745,9.3,Lunch (Actuals),HOME
"Department for Business, Innovation and Skills",UK Shared Business Services Ltd,29/04/2022,IT Cloud Services,Production Services,FlyForm Ltd,99400017,"11,940.00",10 x Days of Lead Technical Consultant for Service Now Improvement. This improvement will ultimately allow CG4 Plugin on Service Now for the Asset Management Team.,CF10 3AG
"Department for Business, Innovation and Skills",UK Shared Business Services Ltd,29/04/2022,IT / Computing Support Services,UKRI Taleo,Oracle Corporation UK Ltd,99564711,553.8,Technical Support (Professional Services) for Oracle Taleo System. This Professional Services is required to build a new Candidate Selection Workflow.,RG6 1RA
"Department for Business, Innovation and Skills",UK Shared Business Services Ltd,29/04/2022,Recruitment Costs,Corporate HR,Everwell Occupational Health Ltd,99576719,210,Professional Services,CW11 3AE
"Department for Business, Innovation and Skills",UK Shared Business Services Ltd,29/04/2022,Data Storage & Recovery,Finance Operations 2,The Maltings Document Storage Solutions Ltd,99580712,332.59,Computing Services,CF24 5EZ
"Department for Business, Innovation and Skills",UK Shared Business Services Ltd,29/04/2022,Data Storage & Recovery,Finance Operations 2,The Maltings Document Storage Solutions Ltd,99580713,332.59,Computing Services,CF24 5EZ
"Department for Business, Innovation and Skills",UK Shared Business Services Ltd,29/04/2022,T&S - Other Charges,D&I Operations,Unspecified,99586734,18.46,Miscellaneous (Actuals),HOME
"Department for Business, Innovation and Skills",UK Shared Business Services Ltd,29/04/2022,T&S - Parking Tolls Congestion Charges,Operational Excellence,Unspecified,99586735,4.7,"Parking, Tolls, Congestion Charge",HOME
"Department for Business, Innovation and Skills",UK Shared Business Services Ltd,29/04/2022,T&S - Vehicle Hire,Operational Excellence,Unspecified,99586735,100.79,Vehicle Hire/Rental/Fuel (Actuals),HOME
"Department for Business, Innovation and Skills",UK Shared Business Services Ltd,01/04/2022,Bank Charges,Corporate Finance,,,169.57,Bank Charges,
"Department for Business, Innovation and Skills",UK Shared Business Services Ltd,26/04/2022,Bank Charges,Corporate Finance,,,"1,478.00",Bank Charges,
